fUST/lending_fUST_20260126
["ID","MTS","AMOUNT","RATE_DAILY","PERIOD"]
[403596704,1769401832175,-705.26,0.00011611,2]
[403596705,1769401832184,-319.82034045,0.00011688,2]
[403596706,1769401832192,-491.0,0.00012328,2]
[403596707,1769401832201,-369.09,0.00012329,2]
[403596708,1769401832210,-307.57,0.00012329,2]
[403596709,1769401832219,-256.31,0.00012329,2]
[403596710,1769401832228,-213.59,0.00012329,2]
[403596711,1769401832237,-177.99,0.00012329,2]
[403596712,1769401832246,-890.0,0.00012329,2]
[403596713,1769401832255,-300.0,0.00012574,2]
[403596714,1769401832264,-300.0,0.00012574,2]
[403596715,1769401832273,-300.0,0.00012574,2]
[403596716,1769401832282,-300.0,0.00012574,2]
[403596717,1769401832291,-300.0,0.00012574,2]
[403596718,1769401832299,-300.0,0.00012574,2]
[403596719,1769401832308,-300.0,0.00012574,2]
[403596720,1769401832317,-300.0,0.00012574,2]
[403596721,1769401832327,-300.0,0.00012574,2]
[403596722,1769401832335,-300.0,0.00012574,2]
[403596723,1769401832345,-300.0,0.00012574,2]
[403596724,1769401832354,-300.0,0.00012574,2]
[403596725,1769401832363,-300.0,0.00012574,2]
[403596726,1769401832372,-300.0,0.00012574,2]
[403596727,1769401832381,-300.0,0.00012574,2]
[403596728,1769401832390,-449.26080455,0.00012762,2]
[403596729,1769401832398,-2107.69004406,0.00012762,2]
[403596730,1769401832407,-600.0,0.00012824,2]
[403596731,1769401832416,-2995.5292243,0.00012912,2]
[403596732,1769401832424,-154.5951728,0.00013056,2]
[403596733,1769401832433,-910.21581196,0.00013173,2]
[403596734,1769401832442,-1041.66666667,0.00013239,2]
[403596735,1769401832451,-500.0,0.00013273,2]
[403596736,1769401832460,-500.0,0.00013273,2]
[403596737,1769401832469,-500.0,0.00013273,2]
[403596738,1769401832478,-500.0,0.00013273,2]
[403596739,1769401832487,-500.0,0.00013273,2]
[403596740,1769401832496,-4517.70250153,0.00013434,2]
[403596741,1769401832505,-5894.77198241,0.00013434,2]
[403596742,1769401832514,-500.0,0.00013527,2]
[403596743,1769401832523,-209.40437684,0.00013527,2]
[403596744,1769401832532,-500.0,0.00013527,2]
[403596745,1769401832541,-217.15233878,0.00013527,2]
[403596746,1769401832550,-500.0,0.00013527,2]
[403596747,1769401832559,-225.18697532,0.00013527,2]
[403596748,1769401832569,-500.0,0.00013527,2]
[403596749,1769401832578,-295.29207203,0.00013527,2]
[403596750,1769401832587,-500.0,0.00013527,2]
[403596751,1769401832596,-500.0,0.00013527,2]
[403596752,1769401832605,-2773.56790519,0.00013527,2]
[403596753,1769401832614,-500.0,0.00013671,2]
[403596754,1769401832623,-153.0,0.00013671,2]
[403596755,1769401832632,-153.0,0.00013671,2]
[403596756,1769401832641,-153.0,0.00013671,2]
[403596757,1769401832650,-300.0,0.00013673,2]
[403596758,1769401832659,-368.60649408,0.00013688,2]
[403596759,1769401832669,-500.0,0.00013698,2]
[403596760,1769401832679,-500.0,0.00013698,2]
[403596761,1769401832688,-593.95,0.00013698,2]
[403596762,1769401832697,-500.0,0.00013698,2]
[403596763,1769401832706,-500.0,0.00013698,2]
[403596764,1769401832720,-1148.5716571,0.00013698,2]
[403596772,1769401838203,-835.45976051,0.00013698,2]
[403596773,1769401838258,-98.41858239,0.00013698,2]
[403596774,1769401838267,-626.06,0.00013698,2]
[403596775,1769401838277,-5.56122037,0.00013698,2]
[403596776,1769401838289,-494.43877963,0.00013698,2]
[403596777,1769401838298,-500.0,0.00013698,2]
[403596778,1769401838308,-710.50023592,0.00013698,2]
[403596821,1769401840409,-934.03047772,0.00013698,2]
[403597172,1769401843469,-108.07928636,0.00013698,2]
[403597174,1769401843478,-460.401325,0.00013699,2]
[403597176,1769401843487,-798.0,0.00013699,2]
[403597178,1769401843496,-500.0,0.00013699,2]
[403597180,1769401843505,-513.63925062,0.00013699,2]
[403597182,1769401843514,-500.0,0.00013699,2]
[403597184,1769401843523,-153.0,0.00013704,2]
[403597187,1769401843532,-3019.4450892,0.00013714,2]
[403597190,1769401843541,-1018.13299877,0.00013714,2]
[403597244,1769401846417,-940.58663973,0.00013714,2]
[403597245,1769401846427,-845.6992391,0.00013714,2]
[403597246,1769401846436,-500.0,0.0001382,2]
[403597247,1769401846445,-732.90064507,0.00013821,2]
[403597248,1769401846455,-267.09935493,0.00013821,2]
[403597249,1769401846465,-1000.0,0.00013821,2]
[403597250,1769401846474,-1000.0,0.00013821,2]
[403597251,1769401846483,-1000.0,0.00013821,2]
[403597252,1769401846492,-1000.0,0.00013821,2]
[403597253,1769401846501,-160.62,0.00013846,2]
[403597254,1769401846510,-621.11419468,0.00013898,30]
[403597255,1769401846519,-179.0,0.00013926,2]
[403597256,1769401846528,-418.0,0.00013926,2]
[403597257,1769401846537,-500.0,0.00013945,2]
[403597258,1769401846546,-500.0,0.00013972,2]
[403597259,1769401846555,-593.95,0.00013972,2]
[403597260,1769401846565,-500.0,0.00013972,2]
[403597261,1769401846574,-500.0,0.00013972,2]
[403597262,1769401846584,-2082.45,0.00013972,2]
[403597263,1769401846593,-626.06,0.00013972,2]
[403597264,1769401846602,-500.0,0.00013972,2]
[403597265,1769401846611,-173.165718,0.00013972,2]
[403597266,1769401846621,-500.0,0.00013972,2]
[403597267,1769401846631,-1752.61,0.00013972,2]
[403597268,1769401846641,-300.0,0.00013987,2]
[403597269,1769401846649,-300.0,0.00013987,2]
[403597270,1769401846659,-300.0,0.00013987,2]
[403597271,1769401846668,-300.0,0.00013987,2]
[403597272,1769401846677,-300.0,0.00013987,2]
[403597273,1769401846686,-300.0,0.00013987,2]
[403597274,1769401846695,-460.68329822,0.00013989,2]
[403597275,1769401846704,-13053.77608954,0.0001399,2]
[403597355,1769403032293,-380.57647408,9.843e-05,2]
[403597356,1769403032305,-198.44447852,9.843e-05,2]
[403597357,1769403032314,-282.24552983,9.843e-05,2]
[403597358,1769403032323,-182.03,0.00010575,2]
[403597359,1769403032332,-160.90107254,0.00010584,2]
[403597360,1769403032342,-227.53,0.00011015,2]
[403597361,1769403032351,-273.04,0.00011456,2]
[403597362,1769403032360,-333.0497252,0.00011843,2]
[403597364,1769403032369,-318.55,0.00011897,2]
[403597366,1769403032378,-212.0754544,0.00012328,2]
[403597367,1769403032387,-364.06,0.00012337,2]
[403597368,1769403032396,-272.52527828,0.0001272,2]
[403597369,1769403032405,-425.39492657,0.0001272,2]
[403597370,1769403032414,-238.4596185,0.0001272,2]
[403597371,1769403032424,-409.56,0.00012778,2]
[403597372,1769403032432,-945.04549867,0.00013041,2]
[403597373,1769403032442,-300.0,0.00013041,2]
[403597374,1769403032451,-13303.2546719,0.00013042,2]
[403597383,1769403038436,-746.9253651,0.00013042,2]
[403597384,1769403038491,-1289.49080268,0.00013042,2]
[403597430,1769403044754,-160.43,0.00011834,2]
[403597431,1769403044763,-6573.29434124,0.00013042,2]
[403597437,1769403044808,-627.3149025,0.00013042,2]
[403597555,1769403046565,-183.35,0.00012272,2]
[403597556,1769403046575,-206.27,0.0001271,2]
[403597557,1769403046585,-1734.59905693,0.00013042,2]
[403597558,1769403090881,200.0,0.0001,10]
[403597559,1769403091161,721.64,0.0001,20]
[403597560,1769403150910,200.0,0.0001,10]
[403597561,1769403151192,260.82,0.0001,20]
[403597571,1769404232362,-286.87686424,0.00010727,2]
[403597572,1769404232372,-157.52,0.00011432,2]
[403597573,1769404232382,-2500.0,0.00011909,2]
[403597574,1769404232391,-189.02,0.00012194,2]
[403597575,1769404232401,-210.03902906,0.00012455,2]
[403597576,1769404232411,-295.89235707,0.00012455,2]
[403597577,1769404232420,-338.5146998,0.00012727,2]
[403597578,1769404232429,-300.0,0.00012767,2]
[403597579,1769404232438,-300.0,0.00012767,2]
[403597580,1769404232448,-294.0,0.00012767,2]
[403597581,1769404232461,-1200.0,0.00012767,2]
[403597582,1769404232470,-500.0,0.00012768,2]
[403597583,1769404232479,-500.0,0.00012768,2]
[403597584,1769404232488,-500.0,0.00012768,2]
[403597585,1769404232499,-500.0,0.00012768,2]
[403597586,1769404232508,-155.27775804,0.00012898,2]
[403597587,1769404232517,-500.0,0.00012905,2]
[403597588,1769404232527,-500.0,0.00012905,2]
[403597589,1769404232536,-500.0,0.00012905,2]
[403597590,1769404232545,-500.0,0.00012905,2]
[403597591,1769404232555,-192.45870789,0.00012941,2]
[403597592,1769404232564,-500.0,0.00012941,2]
[403597593,1769404232573,-500.0,0.00012941,2]
[403597594,1769404232583,-299.09721626,0.00012941,2]
[403597595,1769404232592,-500.0,0.00012941,2]
[403597596,1769404232600,-500.0,0.00012941,2]
[403597597,1769404232609,-500.0,0.00012941,2]
[403597598,1769404232619,-500.0,0.00012941,2]
[403597599,1769404232628,-500.0,0.00012941,2]
[403597600,1769404232637,-500.0,0.00012941,2]
[403597601,1769404232647,-500.0,0.00012941,2]
[403597602,1769404232656,-500.0,0.00012941,2]
[403597603,1769404232666,-500.0,0.00012941,2]
[403597604,1769404232675,-500.0,0.00012941,2]
[403597605,1769404232684,-500.0,0.00012941,2]
[403597606,1769404232693,-309.45122585,0.00012941,2]
[403597607,1769404232702,-500.0,0.00012941,2]
[403597608,1769404232712,-500.0,0.00012941,2]
[403597609,1769404232721,-500.0,0.00012941,2]
[403597610,1769404232731,-500.0,0.00012941,2]
[403597611,1769404232740,-382.57229355,0.00012941,2]
[403597612,1769404232749,-500.0,0.00012941,2]
[403597613,1769404232758,-240.8554642,0.00012941,2]
[403597614,1769404232767,-500.0,0.00012941,2]
[403597615,1769404232777,-500.0,0.00012941,2]
[403597616,1769404232786,-500.0,0.00012941,2]
[403597617,1769404232796,-373110.08482498,0.00012942,2]
[403597618,1769404232807,-938.97196677,0.00012942,2]
[403597620,1769404232818,-445.54528704,0.00012942,2]
[403597728,1769404238518,-16528.65861666,0.00012942,2]
[403597730,1769404238530,-220.52,0.00012956,2]
[403597732,1769404238540,-151.0,0.00013,2]
[403597734,1769404238550,-239.082,0.00013041,2]
[403597736,1769404238558,-500.0,0.00013042,2]
[403597738,1769404238569,-1602.6,0.00013042,2]
[403597740,1769404238578,-74.43689649,0.00013042,2]
[403597742,1769404238588,-957.60240792,0.00013042,2]
[403597746,1769404238619,-570.56069559,0.00013042,2]
[403597748,1769404238628,-1602.6,0.00013042,2]
[403597750,1769404238637,-1602.6,0.00013042,2]
[403597752,1769404238646,-1602.6,0.00013042,2]
[403597754,1769404238655,-1602.6,0.00013042,2]
[403597756,1769404238664,-1602.6,0.00013042,2]
[403597758,1769404238673,-1602.6,0.00013042,2]
[403597760,1769404238683,-1602.6,0.00013042,2]
[403597762,1769404238692,-1602.6,0.00013042,2]
[403597764,1769404238703,-1602.6,0.00013042,2]
[403597766,1769404238714,-1602.6,0.00013042,2]
[403597768,1769404238723,-1602.6,0.00013042,2]
[403597770,1769404238733,-1602.6,0.00013042,2]
[403597772,1769404238742,-1602.6,0.00013042,2]
[403597774,1769404238751,-1602.6,0.00013042,2]
[403597776,1769404238761,-1602.6,0.00013042,2]
[403597778,1769404238771,-1602.6,0.00013042,2]
[403597780,1769404238780,-1602.6,0.00013042,2]
[403597782,1769404238789,-1602.6,0.00013042,2]
[403597784,1769404238799,-1602.6,0.00013042,2]
[403597786,1769404238809,-1602.6,0.00013042,2]
[403597788,1769404238819,-1602.6,0.00013042,2]
[403597790,1769404238829,-1602.6,0.00013042,2]
[403597792,1769404238839,-1602.6,0.00013042,2]
[403597794,1769404238848,-1602.6,0.00013042,2]
[403597795,1769404238858,-1602.6,0.00013042,2]
[403597796,1769404238868,-1602.6,0.00013042,2]
[403597797,1769404238877,-1602.6,0.00013042,2]
[403597798,1769404238887,-1602.6,0.00013042,2]
[403597799,1769404238896,-1602.6,0.00013042,2]
[403597800,1769404238906,-1602.6,0.00013042,2]
[403597801,1769404238915,-1602.6,0.00013042,2]
[403597802,1769404238925,-1602.6,0.00013042,2]
[403597803,1769404238935,-1602.6,0.00013042,2]
[403597804,1769404238944,-1601.32,0.00013042,2]
[403597805,1769404238954,-250.0,0.00013042,2]
[403597806,1769404238964,-201.59957773,0.00013042,2]
[403597807,1769404238974,-351.53429337,0.00013042,2]
[403597808,1769404238983,-258.59155915,0.00013042,2]
[403597809,1769404238994,-500.0,0.00013042,2]
[403597810,1769404239004,-503.4083209,0.00013042,2]
[403597811,1769404239014,-173.10272367,0.00013179,2]
[403597812,1769404239024,-1041.66666667,0.00013237,2]
[403597813,1769404239033,-500.0,0.00013273,2]
[403597814,1769404239043,-500.0,0.00013273,2]
[403597815,1769404239054,-500.0,0.00013273,2]
[403597816,1769404239063,-500.0,0.00013273,2]
[403597817,1769404239072,-500.0,0.00013273,2]
[403597818,1769404239082,-512.56092248,0.00013316,2]
[403597819,1769404239091,-4403.6907597,0.00013355,2]
[403597820,1769404239101,-1099.203186,0.00013355,2]
[403597821,1769404239110,-153.0,0.000134,2]
[403597822,1769404239120,-300.0,0.00013404,2]
[403597823,1769404239129,-300.0,0.00013404,2]
[403597825,1769404239138,-300.0,0.00013404,2]
[403597826,1769404239148,-300.0,0.00013404,2]
[403597828,1769404239157,-300.0,0.00013404,2]
[403597830,1769404239167,-300.0,0.00013404,2]
[403597832,1769404239176,-300.0,0.00013404,2]
[403597834,1769404239186,-300.0,0.00013404,2]
[403597836,1769404239195,-300.0,0.00013404,2]
[403597838,1769404239205,-300.0,0.00013404,2]
[403597840,1769404239214,-300.0,0.00013404,2]
[403597842,1769404239223,-300.0,0.00013404,2]
[403597844,1769404239233,-300.0,0.00013404,2]
[403597846,1769404239242,-300.0,0.00013404,2]
[403597848,1769404239252,-300.0,0.00013404,2]
[403597850,1769404239261,-155.27775801,0.00013405,2]
[403597852,1769404239270,-378.5669065,0.00013425,2]
[403597854,1769404239279,-378.5669065,0.00013425,2]
[403597856,1769404239288,-500.0,0.00013475,2]
[403597858,1769404239298,-500.0,0.00013475,2]
[403597860,1769404239307,-500.0,0.00013475,2]
[403597862,1769404239317,-151.0,0.000135,2]
[403597864,1769404239326,-153.0,0.000135,2]
[403597866,1769404239336,-378.5669065,0.000135,2]
[403597868,1769404239345,-153.0,0.000135,2]
[403597870,1769404239355,-379.4764267,0.000136,2]
[403597872,1769404239364,-382.3548691,0.000136,2]
[403597874,1769404239373,-153.0,0.000136,2]
[403597876,1769404239382,-600.0,0.00013671,2]
[403597878,1769404239390,-300.0,0.00013673,2]
[403597880,1769404239399,-500.0,0.00013698,2]
[403597882,1769404239408,-529.47261769,0.00013698,2]
[403597884,1769404239417,-500.0,0.00013698,2]
[403597886,1769404239427,-500.0,0.00013698,2]
[403597888,1769404239435,-500.0,0.00013698,2]
[403597890,1769404239444,-596.14,0.00013698,2]
[403597892,1769404239456,-500.0,0.00013698,2]
[403597894,1769404239465,-500.0,0.00013698,2]
[403597914,1769404239639,-1908.91,0.00013698,2]
[403597917,1769404239659,-573.89,0.00013698,2]
[403597920,1769404239669,-1693.65,0.00013698,2]
[403597922,1769404239678,-500.0,0.00013698,2]
[403597924,1769404239687,-1000.0,0.00013699,2]
[403597926,1769404239696,-798.0,0.00013699,2]
[403597928,1769404239706,-195.11370284,0.00013699,2]
[403597930,1769404239715,-152.2334305,0.00013699,2]
[403597932,1769404239724,-500.0,0.00013699,2]
[403597933,1769404239734,-500.0,0.00013699,2]
[403597935,1769404239743,-525.31562061,0.00013699,2]
[403597937,1769404239752,-500.0,0.00013699,2]
[403597939,1769404239761,-500.0,0.00013699,2]
[403597941,1769404239771,-500.0,0.00013699,2]
[403597943,1769404239780,-185.3395218,0.00013699,2]
[403597945,1769404239789,-305.5744611,0.00013699,2]
[403597947,1769404239799,-252.03,0.00013718,2]
[403597949,1769404239808,-199.7896507,0.00013784,2]
[403597951,1769404239819,-801.9828744,0.00013784,2]
[403597953,1769404239828,-416.7468345,0.00013784,2]
[403597955,1769404239836,-194.5963318,0.00013784,2]
[403597957,1769404239846,-603.5926791,0.00013784,2]
[403597959,1769404239856,-194.5963318,0.00013784,2]
[403597961,1769404239865,-603.5926791,0.00013784,2]
[403597963,1769404239874,-603.5926791,0.00013784,2]
[403597965,1769404239883,-556.9631711,0.00013784,2]
[403597967,1769404239893,-1000.0,0.00013821,2]
[403597969,1769404239903,-1000.0,0.00013821,2]
[403597970,1769404239912,-1000.0,0.00013821,2]
[403597972,1769404239922,-1000.0,0.00013821,2]
[403597974,1769404239931,-1000.0,0.00013821,2]
[403597975,1769404239941,-200.0,0.00013862,2]
[403597977,1769404239950,-200.0,0.00013862,2]
[403597979,1769404239959,-200.0,0.00013862,2]
[403597981,1769404239968,-150.329319,0.00013872,2]
[403597982,1769404239978,-153.0,0.00013891,2]
[403597984,1769404239987,-153.0,0.00013891,2]
[403597985,1769404239997,-155.27775801,0.00013913,2]
[403597987,1769404240006,-729.0,0.00013914,2]
[403597988,1769404240016,-200.0,0.00013922,2]
[403597989,1769404240025,-200.0,0.00013922,2]
[403597990,1769404240034,-200.0,0.00013922,2]
[403597991,1769404240043,-1368.0,0.00013956,2]
[403597992,1769404240053,-2150.0,0.00013956,2]
[403597993,1769404240062,-630.0,0.00013956,2]
[403597994,1769404240071,-418.0,0.00013956,2]
[403597995,1769404240081,-715.0,0.00013956,2]
[403597996,1769404240090,-179.901,0.00013956,2]
[403597997,1769404240099,-500.0,0.00013972,2]
[403597998,1769404240109,-500.0,0.00013972,2]
[403597999,1769404240118,-596.14,0.00013972,2]
[403598000,1769404240128,-500.0,0.00013972,2]
[403598001,1769404240137,-500.0,0.00013972,2]
[403598002,1769404240146,-1908.91,0.00013972,2]
[403598003,1769404240155,-573.89,0.00013972,2]
[403598004,1769404240165,-1693.65,0.00013972,2]
[403598005,1769404240174,-500.0,0.00013972,2]
[403598006,1769404240183,-12636.73364272,0.0001399,2]
[403598016,1769404243738,-517.30026024,0.00013475,2]
[403598017,1769404243747,-21800.15249961,0.0001399,2]
[403598038,1769404246699,-30248.15037486,0.0001399,2]
[403598039,1769404342281,333.63312313,0.00015562,120]
[403598041,1769405420674,-150.0,8.146e-05,2]
[403598042,1769405420700,-276.9690013,8.331e-05,2]
[403598043,1769405420712,-8.49798182,8.331e-05,2]
[403598078,1769405431629,-150.0,8.497e-05,2]
[403598080,1769405431638,-150.0,9.269e-05,2]
[403598082,1769405431648,-150.0,0.00010041,2]
[403598084,1769405431657,-336.85104008,0.00010331,2]
[403598086,1769405431666,-388.23509704,0.00012331,2]
[403598088,1769405431675,-300.0,0.0001274,2]
[403598090,1769405431684,-300.0,0.0001274,2]
[403598094,1769405431694,-300.0,0.0001274,2]
[403598097,1769405431702,-1200.0,0.0001274,2]
[403598101,1769405431711,-3420.03975673,0.00012741,2]
[403598104,1769405431722,-933.0,0.00012741,2]
[403598169,1769405437685,-150.0,0.00010814,2]
[403598171,1769405437697,-157.46,0.00011586,2]
[403598173,1769405437707,-188.95,0.00012359,2]
[403598174,1769405437717,-37399.89080732,0.00012741,2]
[403598177,1769405437729,-398981.19390378,0.00012741,2]
[403598178,1769405437740,-6298.74026498,0.00012741,2]
[403598179,1769405437758,-580.52519946,0.00012741,2]
[403598180,1769405437770,-2514.17811519,0.00012741,2]
[403598210,1769405438091,-222554.34751481,0.00012741,2]
[403598211,1769405438105,-701.73628914,0.00012741,2]
[403598212,1769405438118,-123213.90176891,0.00012741,2]
[403598317,1769405445838,-417.0,0.00012741,2]
[403598318,1769405490980,200.0,0.0001,10]
[403598349,1769406631788,-3090.0,8.077e-05,2]
[403598352,1769406631797,-533.0,8.077e-05,2]
[403598354,1769406631808,-301.82180515,8.2e-05,2]
[403598356,1769406631818,-150.0,8.241e-05,2]
[403598358,1769406631827,-150.0,8.991e-05,2]
[403598359,1769406631836,-186.74,9.77e-05,2]
[403598361,1769406631846,-356.14973008,0.000102,2]
[403598363,1769406631855,-383.4160575,0.00010432,2]
[403598365,1769406631867,-300.042,0.00010432,2]
[403598367,1769406631878,-1541.7564008,0.00010432,2]
[403598370,1769406631887,-248.99,0.00010522,2]
[403598371,1769406631897,-159.62665952,0.00010583,2]
[403598373,1769406631907,-300.0,0.0001064,2]
[403598375,1769406631918,-300.0,0.0001064,2]
[403598377,1769406631927,-300.0,0.0001064,2]
[403598379,1769406631937,-300.0,0.0001064,2]
[403598381,1769406631946,-300.0,0.0001064,2]
[403598383,1769406631956,-300.0,0.0001064,2]
[403598384,1769406631965,-300.0,0.0001064,2]
[403598385,1769406631974,-300.0,0.0001064,2]
[403598386,1769406631983,-300.0,0.0001064,2]
[403598387,1769406631992,-300.0,0.0001064,2]
[403598389,1769406632002,-300.0,0.0001064,2]
[403598391,1769406632011,-300.0,0.0001064,2]
[403598393,1769406632020,-300.0,0.0001064,2]
[403598395,1769406632029,-311.23,0.00011274,2]
[403598397,1769406632038,-373.48,0.00012025,2]
[403598399,1769406632047,-410.47765501,0.000122,2]
[403598400,1769406632056,-300.0,0.00012639,2]
[403598401,1769406632066,-246.44884276,0.0001264,2]
[403598402,1769406632075,-500.0,0.0001264,2]
[403598403,1769406632084,-500.0,0.0001264,2]
[403598404,1769406632093,-292.73344792,0.0001264,2]
[403598458,1769406646196,-300.0,0.0001064,2]
[403598459,1769406646206,-300.0,0.0001064,2]
[403598460,1769406646216,-600.0,0.00010852,2]
[403598461,1769406646226,-81.11215992,0.00011937,2]
[403598462,1769407236229,-486.99,9.659e-05,2]
[403598463,1769407399382,-68.01,9.659e-05,2]
[403598464,1769407399405,-283.45282135,9.659e-05,2]
[403598465,1769407399427,-150.0,9.717e-05,2]
[403598466,1769407438579,150.0,8.633e-05,2]
[403598467,1769407438978,150.0,9.418e-05,2]
[403598469,1769407518767,150.0,8.629e-05,2]
[403598470,1769407519161,48.53717865,9.413e-05,2]
[403598471,1769407519183,101.46282135,9.413e-05,2]
[403598472,1769407593167,150.0,8.225e-05,2]
[403598473,1769407593580,150.0,8.972e-05,2]
[403598474,1769407594011,150.0,9.72e-05,2]
[403598475,1769407666435,150.0,8.217e-05,2]
[403598476,1769407666832,150.0,8.964e-05,2]
[403598477,1769407667242,148.53717865,9.711e-05,2]
[403598478,1769407667265,1.46282135,9.711e-05,2]
[403598516,1769407832015,-150.0,8.338e-05,2]
[403598518,1769407832025,-150.0,9.096e-05,2]
[403598520,1769407832035,-150.0,9.854e-05,2]
[403598522,1769407832045,-151.99,0.00010612,2]
[403598525,1769407832055,-277.78376492,0.00010832,2]
[403598527,1769407832064,-189.99,0.00011369,2]
[403598530,1769407832073,-510.2958972,0.0001189,3]
[403598533,1769407832083,-227.99,0.00012127,2]
[403598536,1769407832095,-160.0,0.000124,2]
[403598539,1769407832104,-155.27775801,0.0001254,2]
[403598541,1769407832113,-500.0,0.0001254,2]
[403598544,1769407832121,-221.67568073,0.0001254,2]
[403598547,1769407832131,-25.30531992,0.0001254,2]
[403599253,1769407912940,-150.0,9.08e-05,2]
[403599256,1769407968859,150.0,8.215e-05,2]
[403599257,1769407969250,150.0,8.962e-05,2]
[403599258,1769407969657,150.0,9.709e-05,2]
[403599259,1769408041177,150.0,8.214e-05,2]
[403599260,1769408041568,150.0,8.961e-05,2]
[403599261,1769408041975,100.0,9.708e-05,2]
[403599262,1769408041996,50.0,9.708e-05,2]
[403599263,1769408111750,150.0,8.187e-05,2]
[403599264,1769408112148,150.0,8.931e-05,2]
[403599265,1769408112544,150.0,9.675e-05,2]
[403599266,1769408180465,150.0,7.717e-05,2]
[403599267,1769408180887,150.0,8.419e-05,2]
[403599268,1769408185063,150.0,9.121e-05,2]
[403599269,1769408186713,50.0,9.822e-05,2]
[403599270,1769408186736,100.0,9.822e-05,2]
[403599271,1769408251725,150.0,7.714e-05,2]
[403599272,1769408252131,150.0,8.415e-05,2]
[403599273,1769408252529,150.0,9.116e-05,2]
[403599322,1769409038164,-358.00331605,0.00010726,2]
[403599323,1769409038174,-278.61544344,0.0001087,2]
[403599324,1769409038184,-300.4607693,0.00011014,2]
[403599325,1769409038194,-470.38218301,0.00011425,2]
[403599326,1769409038221,-643.20627909,0.00011425,2]
[403599327,1769409038231,-4567.2657241,0.00011679,2]
[403599328,1769409038240,-300.0,0.00012265,2]
[403599329,1769409038254,-1200.0,0.00012265,2]
[403599330,1769409038264,-150.0,0.00012266,2]
[403599331,1769409038273,-300.4607693,0.00012309,2]
[403599332,1769409038282,-4675.00311045,0.00012617,2]
[403599333,1769409038294,-864.82299943,0.00012617,2]
[403599603,1769409454668,-289.23544344,8.499e-05,2]
[403599604,1769409454690,-150.0,8.868e-05,2]
[403599605,1769409454710,-150.0,9.752e-05,2]
[403599606,1769409512371,-150.0,8.93e-05,2]
[403599607,1769409512392,-150.0,9.742e-05,2]
[403599608,1769409587778,-150.0,8.939e-05,2]
[403599609,1769409587798,-150.0,9.751e-05,2]
[403599610,1769409658881,-150.0,8.124e-05,2]
[403599611,1769409658903,-150.0,8.863e-05,2]
[403599612,1769409658925,-150.0,9.601e-05,2]
[403599613,1769409737029,-150.0,8.118e-05,2]
[403599614,1769409737052,-150.0,8.857e-05,2]
[403599615,1769409737074,-150.0,9.595e-05,2]
[403599616,1769409826368,-150.0,8.121e-05,2]
[403599617,1769409826388,-150.0,8.859e-05,2]
[403599618,1769409826409,-150.0,9.598e-05,2]
[403599619,1769409901032,-150.0,8.12e-05,2]
[403599620,1769409901053,-150.0,8.859e-05,2]
[403599621,1769409901074,-150.0,9.597e-05,2]
[403599622,1769409945665,-150.0,8.119e-05,2]
[403599623,1769409945687,-150.0,8.857e-05,2]
[403599624,1769409945708,-150.0,9.595e-05,2]
[403599625,1769409946731,283.45073457,8.488e-05,2]
[403599626,1769410013796,-150.0,8.199e-05,2]
[403599630,1769410232317,-189.64,0.00010428,2]
[403599631,1769410232327,-72.588,0.00010488,2]
[403599688,1769410238441,-261.88386679,0.00010488,2]